bitfinex-derivatives/quotes_ETHF0:USTF0_20250704
["timestamp","ask_amount","ask_price","bid_price","bid_amount"]
[1751609630647,3.2078,2556.6,2556.1,3.2078]
[1751609630840,0.78207,2556.5,2556.4,0.78207]
[1751609631247,0.78209,2556.4,2556.3,0.78209]
[1751609631446,0.78213,2556.3,2556.2,0.78213]
[1751609632251,0.78216,2556.2,2556.1,0.78216]
[1751609632444,0.78215,2556.2,2556.1,0.78216]
[1751609633262,0.78214,2556.3,2556.2,0.78214]
[1751609634158,0.78216,2556.2,2556.1,0.78216]
[1751609634455,0.78217,2556.2,2556.1,0.78217]
[1751609634654,0.78217,2556.2,2555.5,1.95589]
[1751609634655,0.78227,2555.8,2555.7,0.78227]
[1751609634858,0.78226,2555.9,2555.8,0.78226]
[1751609635249,0.78223,2556.0,2555.9,0.78223]
[1751609635455,3.2078,2556.3,2556.1,0.78217]
[1751609635654,3.98993,2556.3,2556.2,0.78215]
[1751609636153,0.6544,2556.6,2555.8,3.34944]
[1751609636354,0.6544,2556.6,2556.0,1.95552]
[1751609636654,0.6544,2556.6,2556.4,0.78208]
[1751609636853,0.78209,2556.4,2556.3,0.78209]
[1751609637053,0.78207,2556.5,2556.4,0.78208]
[1751609638354,0.6544,2556.6,2556.1,2.0334]
[1751609638554,0.78212,2556.3,2556.2,0.78215]
[1751609639566,0.78215,2556.2,2556.1,0.78215]
[1751609640854,3.98992,2556.3,2556.2,0.78215]
[1751609641156,0.78216,2556.2,2556.1,0.78216]
[1751609641852,3.2078,2556.3,2556.2,0.78215]
[1751609642060,3.8622,2556.6,2555.9,5.16337]
[1751609642357,0.78211,2556.4,2556.3,0.78211]
[1751609642955,0.78211,2556.4,2556.0,1.2984]
[1751609642956,0.78208,2556.5,2556.4,0.78207]
[1751609643255,3.8622,2556.6,2556.0,1.2984]
[1751609643256,3.2078,2556.6,2556.5,0.78205]
[1751609643461,3.98982,2556.6,2556.5,0.78205]
[1751609643756,3.2078,2556.9,2556.5,1.95514]
[1751609643961,3.2078,2556.9,2556.8,0.78196]
[1751609644758,3.98973,2556.9,2556.8,0.78196]
[1751609645153,0.78197,2556.8,2556.7,0.78197]
[1751609645957,3.98975,2556.9,2556.8,0.78196]
[1751609646149,0.78192,2557.0,2556.8,0.78194]
[1751609646353,0.78189,2557.1,2556.9,0.78192]
[1751609646960,0.78189,2557.1,2557.0,0.7819]
[1751609647157,0.78186,2557.2,2557.0,0.7819]
[1751609647359,3.98963,2557.3,2556.7,1.3047]
[1751609647661,3.2078,2557.3,2557.2,0.78184]
[1751609648260,0.78182,2557.3,2556.9,4.5125]
[1751609648461,0.78182,2557.3,2557.2,0.78183]
[1751609648655,0.78175,2557.5,2556.9,4.5125]
[1751609648857,0.78182,2557.3,2556.9,4.5125]
[1751609649064,0.78188,2557.1,2557.0,0.78189]
[1751609649357,0.78188,2557.1,2556.9,3.2078]
[1751609649551,0.78188,2557.1,2557.0,0.7819]
[1751609649958,0.78186,2557.2,2557.0,0.7819]
[1751609650162,0.78187,2557.1,2557.0,0.7819]
[1751609651153,0.78189,2557.1,2556.6,1.95503]
[1751609651358,0.78189,2557.1,2557.0,0.7819]
[1751609651659,8.80961898,2557.3,2556.7,1.3817]
[1751609651856,0.78187,2557.1,2556.7,1.3817]
[1751609652061,0.78187,2557.1,2557.0,0.7819]
[1751609652257,0.78189,2557.1,2557.0,0.78189]
[1751609653961,0.78192,2557.0,2556.9,0.78192]
[1751609654657,0.78189,2557.1,2557.0,0.78189]
[1751609655057,0.78191,2557.0,2556.9,0.78191]
[1751609655461,0.78189,2557.1,2557.0,0.78189]
[1751609659460,0.78186,2557.2,2557.1,0.78187]
[1751609661460,3.98964,2557.3,2557.2,0.78184]
[1751609662966,0.78191,2557.1,2557.0,0.78189]
[1751609663557,3.2078,2557.3,2556.8,0.78194]
[1751609663558,0.78193,2556.9,2556.8,0.78194]
[1751609664666,5.60181898,2556.9,2556.4,0.78208]
[1751609664866,5.60181898,2556.6,2555.6,3.2078]
[1751609665165,0.78217,2556.2,2556.0,0.78221]
[1751609665558,3.2078,2556.3,2556.0,0.78221]
[1751609665559,0.78218,2556.1,2556.0,0.78221]
[1751609665758,0.78216,2556.2,2556.0,0.78221]
[1751609666065,0.78216,2556.2,2556.0,0.78218]
[1751609666267,3.2078,2556.3,2555.7,1.95575]
[1751609666570,3.98993,2556.3,2556.2,0.78215]
[1751609666872,3.2078,2556.3,2556.2,0.78215]
[1751609667068,3.2078,2556.6,2556.4,0.78208]
[1751609667261,3.2078,2556.6,2556.5,0.78205]
[1751609667873,0.78201,2556.7,2556.6,0.78202]
[1751609668067,0.78201,2556.7,2556.5,0.78203]
[1751609668266,0.78202,2556.6,2556.5,0.78203]
[1751609669363,0.78202,2556.6,2556.4,0.78206]
[1751609669364,0.78204,2556.6,2556.4,0.78206]
[1751609669562,5.60181898,2556.8,2556.3,1.9957]
[1751609669865,3.2078,2556.9,2556.3,1.9957]
[1751609669866,0.782,2556.7,2556.6,0.78201]
[1751609670265,0.78202,2556.6,2556.5,0.78204]
[1751609670472,0.78201,2556.7,2556.5,0.78204]
[1751609671172,41.7648,2556.9,2556.3,1.9957]
[1751609671173,0.78202,2556.6,2556.4,0.78207]
[1751609671777,0.78202,2556.6,2556.5,0.78205]
[1751609672577,0.78206,2556.5,2556.4,0.78206]
[1751609672777,0.78215,2556.2,2556.1,0.78215]
[1751609672973,1.95545,2556.1,2555.5,1.45754]
[1751609673269,3.2078,2555.9,2555.6,0.78232]
[1751609673476,3.2078,2555.9,2555.5,0.78234]
[1751609673675,0.78231,2555.7,2555.6,0.78233]
[1751609673976,0.78234,2555.6,2555.3,4.5246]
[1751609674179,3.2078,2555.6,2555.2,1.46173]
[1751609674476,0.78241,2555.4,2555.3,0.78242]
[1751609674673,0.78241,2555.4,2555.2,1.46173]
[1751609674976,0.78241,2555.4,2555.3,0.78242]
[1751609675375,0.78241,2555.4,2555.2,1.46173]
[1751609675576,0.78241,2555.4,2555.3,0.78242]
[1751609675876,0.78238,2555.5,2555.4,0.78239]
[1751609676075,0.78238,2555.5,2555.2,0.6793]
[1751609676275,0.78238,2555.5,2555.4,0.78239]
[1751609677479,0.78239,2555.4,2555.3,0.7824]
[1751609677879,0.78238,2555.5,2555.3,0.7824]
[1751609678078,0.78238,2555.5,2555.3,0.78241]
[1751609678275,3.2078,2555.6,2555.5,0.78236]
[1751609678980,0.78223,2556.0,2555.8,0.78224]
[1751609679182,38.409,2556.0,2555.9,0.78224]
[1751609679381,51.7319,2556.1,2556.0,0.78221]
[1751609679583,1.3429,2556.1,2556.0,0.78221]
[1751609679775,3.2078,2556.2,2556.1,0.78218]
[1751609680577,2.08837,2556.5,2556.3,0.78208]
[1751609680776,38.375,2556.4,2556.3,0.78208]
[1751609680976,39.15708,2556.4,2556.3,0.78208]
[1751609681480,2.08836,2556.5,2556.4,0.78208]
[1751609681672,40.44236,2556.5,2556.4,0.78208]
[1751609681876,39.6603,2556.5,2556.4,0.78208]
[1751609682078,39.6563,2556.5,2556.4,0.78208]
[1751609682278,1.3063,2556.5,2556.4,0.78208]
[1751609682671,3.2078,2556.6,2556.5,0.78205]
[1751609682882,41.5268,2556.6,2556.5,0.78205]
[1751609683077,3.2078,2556.6,2556.5,0.78205]
[1751609684387,3.2078,2556.6,2556.5,2.07995]
[1751609684784,0.78201,2556.7,2556.6,0.78202]
[1751609685683,0.78204,2556.6,2556.5,0.78205]
[1751609686189,0.78201,2556.7,2556.6,0.78202]
[1751609686491,0.78202,2556.6,2556.5,0.78203]
[1751609687388,0.78204,2556.6,2556.5,0.78205]
[1751609687588,41.5148,2556.9,2556.6,0.78202]
[1751609687589,0.78201,2556.7,2556.6,0.78202]
[1751609687790,38.286,2556.7,2556.3,1.3034]
[1751609687995,0.78206,2556.5,2556.4,0.78207]
[1751609688390,38.286,2556.7,2556.3,1.3034]
[1751609688391,0.78208,2556.4,2556.3,0.78212]
[1751609688593,38.286,2556.7,2555.9,2.7293]
[1751609688594,4.57,2556.6,2555.9,2.7293]
[1751609688790,4.57,2556.6,2556.1,0.78215]
[1751609688791,0.78215,2556.2,2556.1,0.78215]
[1751609689587,0.78215,2556.2,2556.1,0.78218]
[1751609689791,0.78213,2556.3,2556.2,0.78214]
[1751609689991,0.78206,2556.5,2556.4,0.78208]
[1751609690287,38.284,2556.5,2556.1,3.2078]
[1751609690493,0.78207,2556.5,2556.3,0.78211]
[1751609691101,0.78207,2556.5,2556.3,0.78209]
[1751609691594,0.78207,2556.5,2556.1,3.2078]
[1751609691595,0.78212,2556.3,2556.2,0.78213]
[1751609692292,0.7821,2556.4,2556.3,0.78211]
[1751609693390,0.78208,2556.5,2556.4,0.78208]
[1751609693788,3.9087,2556.6,2556.5,0.78205]
[1751609693992,42.1907,2556.6,2556.2,1.3878]
[1751609694189,0.78208,2556.5,2556.3,0.7821]
[1751609694589,0.78209,2556.4,2556.2,1.3878]
[1751609694793,0.78209,2556.4,2556.3,0.78209]
[1751609696195,5.60181898,2556.5,2556.0,3.2078]
[1751609696389,0.78214,2556.3,2556.2,0.78214]
[1751609696696,8.93228898,2556.5,2556.0,3.2078]
[1751609696994,0.78218,2556.1,2556.0,3.98999]
[1751609697384,0.78218,2556.1,2556.0,3.2078]
[1751609697585,0.7822,2556.0,2555.9,0.78222]
[1751609698094,1.42519,2556.1,2556.0,0.7822]
[1751609698985,0.78216,2556.2,2556.1,0.78217]
[1751609699185,39.06116,2556.2,2556.1,0.78217]
[1751609699386,38.278,2556.2,2556.1,0.78217]
[1751609699587,3.2078,2556.3,2556.1,0.78217]
[1751609699796,38.278,2556.2,2556.1,0.78217]
[1751609700196,3.2078,2556.3,2556.2,0.78214]
[1751609700499,38.278,2556.4,2556.3,0.78211]
[1751609700999,39.06008,2556.4,2556.3,0.78211]
[1751609701396,0.78208,2556.4,2556.3,0.78211]
[1751609701694,0.78207,2556.5,2556.4,0.78208]
[1751609701888,0.78208,2556.4,2556.3,0.7821]
[1751609702288,39.05907,2556.5,2556.4,0.78208]
[1751609702690,39.05906,2556.5,2556.4,0.78208]
[1751609702892,0.7009,2556.6,2556.5,0.78205]
[1751609703093,3.2078,2556.7,2556.6,0.78202]
[1751609705095,0.78211,2556.3,2556.2,0.78212]
[1751609705800,0.78209,2556.4,2556.3,0.7821]
[1751609706296,0.78212,2556.3,2556.2,0.78213]
[1751609706692,0.78209,2556.4,2556.3,0.7821]
[1751609706998,0.78211,2556.3,2556.2,0.78212]
[1751609707599,0.78217,2556.1,2556.0,3.98999]
[1751609707793,5.60181898,2556.4,2556.1,0.78217]
[1751609707794,0.78216,2556.2,2556.1,0.78217]
[1751609708098,0.78214,2556.2,2556.1,0.78217]
[1751609708798,8.80961898,2556.4,2556.2,0.78214]
[1751609708993,3.2078,2556.4,2556.3,0.78211]
[1751609709193,0.78212,2556.3,2556.2,0.78212]
[1751609709596,3.9899,2556.4,2556.3,0.78211]
[1751609710199,0.78212,2556.3,2556.2,0.78212]
[1751609710900,0.78213,2556.3,2556.2,0.78213]
[1751609711400,0.78215,2556.2,2556.1,0.78215]
[1751609711605,5.60181898,2556.3,2555.9,0.78222]
[1751609711799,0.7822,2556.0,2555.9,0.78222]
[1751609712700,0.78224,2555.9,2555.8,0.78224]
[1751609712899,0.78227,2555.8,2555.7,0.78228]
[1751609713295,0.78231,2555.7,2555.6,0.78231]
[1751609713499,0.78228,2555.8,2555.7,0.78228]
[1751609713701,2.13235,2555.9,2555.8,0.78227]
[1751609714105,0.78228,2555.8,2555.7,0.78228]
[1751609714293,0.78231,2555.7,2555.6,0.78231]
[1751609715298,0.78229,2555.8,2555.7,0.78229]
[1751609715494,0.78231,2555.7,2555.6,0.78231]
[1751609716797,0.78229,2555.8,2555.7,0.78229]
[1751609718004,2.13236,2555.9,2555.8,0.78227]
[1751609718304,0.78228,2555.8,2555.7,0.78228]
[1751609718604,0.78228,2555.8,2555.7,0.78227]
[1751609719300,0.78227,2555.8,2555.4,4.5862]
[1751609719605,1.3501,2555.9,2555.4,6.54215]
[1751609719803,0.78228,2555.8,2555.7,0.78227]
[1751609720003,1.3501,2555.9,2555.4,6.54215]
[1751609720504,0.78231,2555.7,2555.6,0.78231]
[1751609720705,0.78229,2555.8,2555.7,0.78229]
[1751609724110,16.362,2556.1,2556.0,0.7822]
[1751609724111,11.876,2556.1,2556.0,0.7822]
[1751609724911,0.78213,2556.3,2556.2,0.78214]
[1751609725208,3.9899,2556.4,2556.3,0.78211]
[1751609725404,3.2078,2556.4,2556.3,0.78211]
[1751609725802,3.9899,2556.4,2556.3,0.78211]
[1751609726615,41.4478,2556.4,2555.7,0.6855]
[1751609726910,0.78225,2555.9,2555.8,0.78226]
[1751609727113,8.98989,2556.4,2555.8,3.2078]
[1751609727410,8.98989,2556.4,2555.7,1.95571]
[1751609727411,0.78221,2556.0,2555.9,0.78222]
[1751609727606,0.78216,2556.2,2556.1,0.78217]
[1751609727807,0.78213,2556.3,2556.2,0.78213]
[1751609728007,8.2078,2556.4,2556.2,0.78213]
[1751609728311,46.4448,2556.4,2556.3,0.78211]
[1751609728512,8.2078,2556.4,2556.3,0.78211]
[1751609728914,5.0,2556.4,2556.3,0.78211]
[1751609729308,5.0,2556.4,2556.3,2.09391]
[1751609729504,5.0,2556.4,2556.3,7.09391]
[1751609730815,3.2078,2557.1,2557.0,0.7819]
[1751609732414,3.98967,2557.1,2556.9,0.78191]
[1751609732610,3.2078,2557.1,2556.8,0.78194]
[1751609733010,5.60181898,2556.9,2556.7,0.78198]
[1751609733311,41.4238,2557.1,2557.0,0.7819]
[1751609733513,3.2078,2557.1,2557.0,0.7819]
[1751609733916,3.2078,2557.1,2557.0,1.64892483]
[1751609736610,95.32774,2557.6,2557.0,1.64892483]
[1751609736611,57.11774,2557.6,2557.4,0.78176]
[1751609736916,57.11774,2557.6,2557.0,1.64892483]
[1751609736917,57.11773,2557.6,2557.1,0.6664]
[1751609737117,0.78175,2557.5,2557.4,0.78176]
[1751609737415,56.336,2557.6,2557.5,0.78175]
[1751609737615,0.78172,2557.6,2557.5,0.78175]
[1751609738012,3.8967,2557.8,2557.7,0.78168]
[1751609738208,3.8967,2557.8,2557.5,0.86702483]
[1751609738409,3.8967,2557.8,2557.6,0.7817]
[1751609738920,0.7817,2557.7,2557.5,0.78172]
[1751609739111,0.7817,2557.7,2557.6,0.78172]
[1751609739415,0.7817,2557.7,2557.5,1.64875483]
[1751609739712,3.8967,2557.8,2557.5,0.86702483]
[1751609739918,0.7817,2557.7,2557.6,0.7817]
[1751609740311,0.7817,2557.7,2557.6,0.86702483]
[1751609740716,4.67837,2557.8,2557.7,0.78168]
[1751609741318,3.98945,2557.8,2557.7,1.64870483]
[1751609741522,3.2078,2557.8,2557.7,1.64870483]
[1751609741820,0.7817,2557.7,2557.6,0.7817]
[1751609742019,0.78175,2557.5,2557.4,0.86702483]
[1751609742312,0.78172,2557.6,2557.5,0.78175]
[1751609742620,3.98947,2557.8,2557.7,0.78168]
[1751609743017,3.98947,2557.8,2557.6,0.78169]
[1751609743216,3.2078,2557.8,2557.7,0.78168]
[1751609743520,3.98945,2557.8,2557.7,0.78168]
[1751609744315,3.2078,2557.8,2557.5,1.3039]
[1751609744621,3.2078,2557.8,2557.4,0.78176]
[1751609744814,4.6094,2557.8,2557.4,0.78176]
[1751609745016,0.78174,2557.6,2557.4,1.64878483]
[1751609745217,0.78175,2557.5,2557.4,1.64878483]
[1751609745521,0.78181,2557.3,2557.2,0.78183]
[1751609745719,0.78181,2557.3,2557.2,1.64885483]
[1751609745916,0.78184,2557.2,2557.1,1.44825]
[1751609746120,0.78182,2557.3,2557.2,0.78182]
[1751609746321,1.42,2557.4,2557.3,0.78181]
[1751609746522,0.78182,2557.3,2557.2,0.78182]
[1751609747419,0.6382,2557.4,2557.1,0.6664]
[1751609747621,0.7819,2557.0,2556.9,3.2078]
[1751609747921,0.78194,2556.9,2556.8,0.78196]
[1751609748321,0.78192,2557.0,2556.9,0.78192]
[1751609748917,0.78197,2556.8,2556.7,0.78197]
[1751609749128,3.2078,2556.8,2556.5,0.78204]
[1751609749321,3.2078,2556.8,2556.1,3.2078]
[1751609749322,2.626,2556.7,2556.1,3.2078]
[1751609749527,1.3313,2556.7,2556.6,0.78202]
[1751609749824,3.2078,2556.8,2556.7,0.78199]
[1751609750024,3.2078,2556.8,2556.7,1.64901483]
[1751609752726,0.78192,2557.0,2556.9,0.78193]
[1751609752927,3.98972,2557.0,2556.9,0.78193]
[1751609753128,3.98972,2557.0,2556.9,1.64895483]
[1751609753818,3.98972,2557.0,2556.9,0.86702483]
[1751609754016,0.78193,2556.9,2556.8,0.78194]
[1751609754221,0.78193,2556.9,2556.7,0.78197]
[1751609754624,0.78193,2556.9,2556.7,1.64899483]
[1751609754823,0.78196,2556.8,2556.7,0.86702483]
[1751609755132,0.78203,2556.6,2556.5,0.78204]
[1751609755321,0.78205,2556.5,2556.4,0.78206]
[1751609755527,0.78208,2556.4,2556.3,0.78209]
[1751609755829,5.34415,2556.6,2556.5,0.78205]
[1751609756025,3.2078,2556.6,2556.5,0.78205]
[1751609756224,3.2078,2556.6,2556.5,1.64907483]
[1751609756426,0.78192,2557.0,2556.8,0.78195]
[1751609756627,0.78192,2557.0,2556.5,6.02996483]
[1751609756628,0.78192,2557.0,2556.6,0.707]
[1751609756826,0.78192,2557.0,2556.8,0.78194]
[1751609757224,1.3543,2557.1,2556.8,0.86702483]
[1751609757428,1.3543,2557.1,2557.0,0.7819]
[1751609757932,0.7819,2557.0,2556.9,0.78191]
[1751609758127,4.82788442,2557.1,2556.9,0.78191]
[1751609758328,0.7819,2557.0,2556.9,1.64893483]
[1751609758729,0.7819,2557.0,2556.9,0.78191]
[1751609759631,4.82787442,2557.1,2556.9,0.78191]
[1751609760130,4.04599442,2557.1,2557.0,0.7819]
[1751609760633,56.308,2557.4,2557.3,0.78181]
[1751609761028,6.68125442,2557.5,2557.4,0.78178]
[1751609761534,5.89949442,2557.5,2557.4,0.78178]
[1751609761733,3.2078,2557.5,2557.4,0.78178]
[1751609762823,3.98956,2557.5,2557.4,0.78178]
[1751609763928,3.2078,2557.5,2557.4,0.78178]
[1751609764139,3.2078,2557.5,2557.3,0.78178]
[1751609764338,0.78178,2557.4,2557.3,0.78178]
[1751609764644,0.78178,2557.4,2557.0,0.78188]
[1751609764645,0.78187,2557.1,2557.0,0.78188]
[1751609765142,0.78186,2557.2,2557.1,0.78186]
[1751609765342,1.43182,2557.3,2557.2,0.78184]
[1751609765837,0.78179,2557.4,2557.2,0.86702483]
[1751609766039,3.2078,2557.5,2557.2,0.86702483]
[1751609766244,3.98956,2557.5,2557.4,0.78178]
[1751609766636,3.98956,2557.5,2557.4,0.86702483]
[1751609767042,3.2078,2557.5,2556.8,3.2078]
[1751609767341,0.78183,2557.3,2557.2,0.78183]
[1751609767545,0.78183,2557.3,2557.2,1.64885483]
[1751609768543,0.78183,2557.3,2557.2,0.86702483]
[1751609768946,0.78183,2557.3,2557.2,0.78184]
[1751609769341,0.78185,2557.2,2557.1,0.78185]
[1751609769543,0.78188,2557.1,2557.0,0.78187]
[1751609769943,0.78188,2557.1,2557.0,1.64889483]
[1751609770140,3.2078,2557.2,2557.1,0.78187]
[1751609770544,3.2078,2557.5,2557.4,0.78178]
[1751609770940,3.2078,2557.5,2557.4,1.64880483]
[1751609771346,3.2078,2558.3,2558.0,0.78157]
[1751609771546,3.2078,2558.3,2558.2,0.78153]
[1751609773149,0.6686,2558.4,2558.3,0.7815]
[1751609773346,0.6686,2558.4,2558.2,0.78152]
[1751609773647,0.6686,2558.4,2557.7,3.8775]
[1751609773648,0.78168,2557.8,2557.4,3.2078]
[1751609773843,0.78164,2557.9,2557.4,3.2078]
[1751609774044,0.78164,2557.9,2557.5,1.285]
[1751609774247,3.98941,2558.0,2557.8,0.78166]
[1751609774640,53.1168,2558.0,2557.2,0.6844]
[1751609774840,5.59763787,2557.5,2557.4,0.78175]
[1751609775142,6.37938787,2557.5,2557.4,0.78175]
[1751609775651,5.59763787,2557.5,2557.4,0.78175]
[1751609775851,6.37938787,2557.5,2557.4,0.78175]
[1751609776252,5.59763787,2557.5,2557.4,0.78175]
[1751609776951,3.2078,2557.7,2557.4,0.86702483]
[1751609777150,2.6367,2557.9,2557.1,1.285]
[1751609777151,56.82103787,2557.9,2557.2,1.95457]
[1751609777351,0.78171,2557.7,2557.2,1.95457]
[1751609777547,0.78171,2557.7,2557.2,2.82159483]
[1751609777747,0.78171,2557.7,2557.6,0.78172]
[1751609777953,0.78167,2557.8,2557.7,0.78168]
[1751609778255,19.52765787,2557.9,2557.8,0.78166]
[1751609778550,6.91803787,2557.9,2557.8,0.78166]
[1751609778746,1.3204,2557.9,2557.8,0.78166]
[1751609778947,0.6582,2557.9,2557.8,0.78166]
[1751609779551,3.2078,2558.0,2557.9,0.78162]
[1751609779950,3.8787,2558.3,2557.9,0.86702483]
[1751609780153,3.8787,2558.3,2558.0,0.78158]
[1751609780456,10.25786787,2558.3,2558.1,0.78154]
[1751609780756,3.8787,2558.3,2558.2,0.78153]
[1751609782146,3.2078,2558.3,2558.2,1.64855483]
[1751609783353,3.9893,2558.3,2558.2,0.78153]
[1751609783656,3.9893,2558.3,2558.0,2.021]
[1751609783657,0.78154,2558.2,2558.1,0.78154]
[1751609784648,0.78157,2558.1,2558.0,0.78158]
[1751609784853,1.46587,2558.1,2557.9,0.7816]
[1751609785054,0.78159,2558.0,2557.9,0.7816]
[1751609785353,1.46588,2558.1,2558.0,0.78159]
[1751609786358,0.6843,2558.1,2558.0,0.78159]
[1751609786559,0.6843,2558.1,2557.6,3.9055]
[1751609786760,1.46588,2558.1,2558.0,0.78159]
[1751609786961,0.6843,2558.1,2558.0,0.78159]
[1751609787863,1.46586,2558.1,2558.0,0.78159]
[1751609788452,0.78161,2558.0,2557.9,0.78161]
[1751609788657,1.46588,2558.1,2558.0,0.78159]
[1751609788859,0.78161,2558.0,2557.9,0.78161]
[1751609789162,1.46589,2558.1,2558.0,0.78159]
[1751609789552,1.46588,2558.1,2558.0,0.78159]
[1751609791365,0.6843,2558.1,2557.7,1.3686]
[1751609791564,5.16187,2557.9,2556.9,5.1626]
[1751609791765,0.78176,2557.5,2557.4,0.78176]
[1751609792664,1.95442,2557.5,2557.0,1.3048]
[1751609792867,0.78185,2557.2,2557.1,0.78185]
[1751609793164,5.59763787,2557.3,2557.0,0.86702483]
[1751609793358,0.78184,2557.2,2557.1,0.78185]
[1751609793969,6.37945787,2557.3,2557.2,0.78184]
[1751609794264,5.59763787,2557.3,2557.2,0.78184]
[1751609794466,1.4396,2557.4,2557.3,0.78181]
[1751609794661,0.78181,2557.3,2557.2,0.78182]
[1751609795265,1.43959,2557.4,2557.3,0.78181]
[1751609795454,0.6578,2557.4,2557.3,0.78181]
[1751609795657,1.43958,2557.4,2557.3,0.78181]
[1751609796365,0.6578,2557.4,2557.3,0.78181]
[1751609796666,1.43958,2557.4,2557.3,0.78181]
[1751609797468,0.78181,2557.3,2557.2,0.78181]
[1751609797961,1.43959,2557.4,2556.9,6.4674]
[1751609798167,1.43959,2557.4,2557.3,0.78181]
[1751609799069,0.78182,2557.3,2557.2,0.78181]
[1751609799269,1.4396,2557.4,2557.3,0.78181]
[1751609799566,0.78183,2557.3,2557.2,0.78183]
[1751609799764,3.98963,2557.3,2557.2,0.78183]
[1751609800271,0.78185,2557.2,2557.1,0.78185]
[1751609800465,0.7819,2557.0,2556.8,0.7057]
[1751609800670,0.78192,2557.0,2556.9,0.78192]
[1751609801269,0.78209,2556.4,2556.3,0.78209]
[1751609801462,5.59763787,2556.5,2556.3,0.86702483]
[1751609801659,0.78214,2556.2,2556.1,0.78216]
[1751609801861,0.78214,2556.2,2556.1,1.64918483]
[1751609802265,0.78213,2556.3,2556.2,0.78214]
[1751609802569,4.68451,2556.4,2556.3,0.78211]
[1751609802958,3.9024,2556.4,2556.3,0.78211]
[1751609804766,4.68448,2556.4,2556.2,0.78212]
[1751609804963,0.78211,2556.3,2556.2,0.78212]
[1751609805167,9.50003787,2556.4,2555.8,3.2078]
[1751609805369,0.78219,2556.1,2555.8,3.2078]
[1751609805664,0.6901,2556.2,2555.8,3.2078]
[1751609805665,1.47226,2556.2,2556.0,0.78219]
[1751609805867,1.47226,2556.2,2556.1,0.78218]
[1751609806065,0.6901,2556.2,2556.1,0.78218]
[1751609806271,9.50003787,2556.4,2556.3,0.78211]
[1751609806272,15.7004,2556.4,2556.3,0.78211]
[1751609806668,3.9024,2556.4,2556.3,0.78211]
[1751609807467,15.3944,2556.4,2555.0,3.2078]
[1751609807668,15.3944,2556.4,2554.1,7.74272546]
[1751609807669,0.78288,2553.8,2553.7,10.05566388]
[1751609807971,5.59763787,2553.6,2552.2,1.9977]
[1751609808175,5.59763787,2552.3,2551.7,0.6782]
[1751609808472,17.39763787,2552.3,2551.8,1.3179]
[1751609808662,3.2078,2551.9,2551.8,1.3179]
[1751609809070,3.2078,2551.9,2551.6,0.78354]
[1751609809271,8.80543787,2552.3,2551.4,1.3179]
[1751609809471,3.99116,2552.3,2551.8,0.78347]
[1751609809770,3.99114,2552.3,2551.9,1.3179]
[1751609810073,3.2078,2552.3,2551.9,13.93188286]
[1751609810270,3.2078,2552.3,2551.9,13.14845286]
[1751609810465,3.2078,2552.6,2552.2,0.78336]
[1751609810660,3.2078,2552.6,2552.3,1.4026]
[1751609811071,6.25416428,2552.4,2552.3,13.23315286]
[1751609811372,3.2078,2552.6,2552.4,0.7833]
[1751609811567,3.2078,2552.6,2552.5,0.78328]
[1751609811868,3.2078,2553.4,2552.5,5.0]
[1751609812171,1.3666957,2553.3,2553.2,0.78306]
[1751609812962,3.2078,2553.4,2552.9,1.4026]
[1751609813167,3.2078,2553.4,2553.3,0.78303]
[1751609813367,3.2078,2553.4,2552.9,1.4026]
[1751609813368,4.57017135,2553.4,2552.9,1.4026]
[1751609813569,6.25416428,2553.1,2553.0,0.78311]
[1751609814166,6.25416428,2553.1,2552.9,0.78314]
[1751609814361,6.25416428,2553.1,2553.0,0.78312]
[1751609815369,9.46196428,2553.4,2553.2,0.78306]
[1751609815574,9.46196428,2553.4,2552.6,13.78866286]
[1751609815969,9.46196428,2553.4,2553.2,0.78305]
[1751609816170,9.46196428,2553.4,2553.3,0.78303]
[1751609816371,9.46196428,2553.4,2553.2,0.78304]
[1751609816567,0.78304,2553.3,2553.0,0.78311]
[1751609816768,1.3594,2553.3,2553.0,0.78311]
[1751609816968,1.3594,2553.3,2552.6,5.1659]
[1751609817170,1.3594,2553.3,2553.1,0.78308]
[1751609817475,2.14245,2553.3,2553.0,0.78312]
[1751609817664,2.14245,2553.3,2552.6,3.99103]
[1751609817665,0.78317,2552.9,2552.6,3.99103]
[1751609817865,6.25416428,2552.8,2552.7,0.78322]
[1751609818071,6.25416428,2552.8,2552.6,3.99103]
[1751609818577,7.03735428,2552.8,2552.6,3.99103]
[1751609818765,6.25416428,2552.8,2552.7,0.78322]
[1751609818965,0.78322,2552.7,2552.6,3.2078]
[1751609819164,0.78322,2552.7,2552.4,0.78329]
[1751609819371,0.78322,2552.7,2552.3,4.513]
[1751609819372,7.03746428,2552.5,2552.0,3.2078]
[1751609819575,6.25416428,2552.5,2552.0,4.5014]
[1751609819875,0.78323,2552.7,2552.4,0.78331]
[1751609820075,3.2078,2552.8,2552.7,0.78322]
[1751609820474,41.7588,2552.8,2552.7,0.78322]
[1751609820671,3.2078,2552.8,2552.0,4.5014]
[1751609820875,7.03742428,2552.6,2552.3,0.78331]
[1751609821076,6.25416428,2552.6,2552.0,13.12415286]
[1751609821272,7.03742428,2552.6,2552.0,13.12415286]
[1751609821576,7.03741428,2552.6,2552.4,0.78329]
[1751609821779,6.25416428,2552.6,2552.5,0.78328]
[1751609821977,38.552,2552.6,2552.5,0.78328]
[1751609822875,4.5193,2552.8,2552.0,4.5014]
[1751609823074,6.25416428,2552.3,2552.0,3.2078]
[1751609823380,41.7478,2552.5,2552.4,0.78331]